[Event "*** Titled Tuesday Blitz"]
[Site "Chess.com"]
[Date "2019.01.01"]
[Round "6"]
[White "Matibar"]
[Black "bugsbunny444"]
[Result "1-0"]
[WhiteElo "2802"]
[BlackElo "2531"]
[TimeControl "180+2"]
[EndTime "14:25:55 PST"]
[Termination "Matibar won by resignation"]

1. e4 {[%clk 0:02:54]} 1... e6 {[%clk 0:03:00.9]} 2. d4 {[%clk 0:02:53.3]} 2...
d5 {[%clk 0:03:02.5]} 3. Nc3 {[%clk 0:02:55]} 3... Nf6 {[%clk 0:03:03.5]} 4. Bg5
{[%clk 0:02:55.5]} 4... Bb4 {[%clk 0:03:04.1]} 5. e5 {[%clk 0:02:54.9]} 5... h6
{[%clk 0:03:05.4]} 6. Bh4 {[%clk 0:02:54.8]} 6... g5 {[%clk 0:03:04]} 7. Bg3
{[%clk 0:02:55.7]} 7... Ne4 {[%clk 0:03:04.1]} 8. Ne2 {[%clk 0:02:56.3]} 8... f5
{[%clk 0:03:04.5]} 9. f3 {[%clk 0:02:19.2]} 9... Nxg3 {[%clk 0:03:05.1]} 10.
hxg3 {[%clk 0:02:20.5]} 10... Qe7 {[%clk 0:03:03.4]} 11. a3 {[%clk 0:02:20]}
11... Ba5 {[%clk 0:03:04.4]} 12. Qd2 {[%clk 0:02:16.5]} 12... Bd7 {[%clk
0:03:02.4]} 13. f4 {[%clk 0:02:05.7]} 13... g4 {[%clk 0:03:02.7]} 14. b4 {[%clk
0:02:04.4]} 14... Bb6 {[%clk 0:03:03.6]} 15. Nc1 {[%clk 0:02:05.4]} 15... a5
{[%clk 0:02:57.4]} 16. b5 {[%clk 0:01:54.2]} 16... a4 {[%clk 0:02:49.7]} 17. Be2
{[%clk 0:01:41.7]} 17... Kf7 {[%clk 0:02:26.2]} 18. Nd1 {[%clk 0:01:41.6]} 18...
c6 {[%clk 0:02:05.8]} 19. c3 {[%clk 0:01:26.9]} 19... cxb5 {[%clk 0:01:59.7]}
20. Nd3 {[%clk 0:01:28.4]} 20... Nc6 {[%clk 0:01:57.4]} 21. Nb4 {[%clk
0:01:28.7]} 21... Na5 {[%clk 0:01:45.1]} 22. Rb1 {[%clk 0:01:22.5]} 22... Rac8
{[%clk 0:01:40.1]} 23. Ne3 {[%clk 0:01:21.2]} 23... Bc6 {[%clk 0:01:07]} 24. Qd3
{[%clk 0:01:18.3]} 24... Qd7 {[%clk 0:00:55.4]} 25. Rh5 {[%clk 0:01:19.1]} 25...
Nc4 {[%clk 0:00:42]} 26. Nxf5 {[%clk 0:01:19.7]} 26... exf5 {[%clk 0:00:42.8]}
27. Rxf5+ {[%clk 0:01:20.9]} 27... Ke7 {[%clk 0:00:41]} 28. Bxg4 {[%clk
0:01:21.3]} 28... Qc7 {[%clk 0:00:14.6]} 29. Rf6 {[%clk 0:01:17.9]} 29... Rcg8
{[%clk 0:00:15.5]} 30. Qf5 {[%clk 0:01:08.8]} 30... h5 {[%clk 0:00:13.2]} 31.
Rf7+ {[%clk 0:01:07.7]} 31... Kd8 {[%clk 0:00:14.7]} 32. Rxc7 {[%clk 0:01:08.8]}
32... Kxc7 {[%clk 0:00:14.6]} 33. Nxc6 {[%clk 0:01:07.6]} 33... bxc6 {[%clk
0:00:15.4]} 34. Qd7+ {[%clk 0:01:08.6]} 34... Kb8 {[%clk 0:00:16]} 35. Qxc6
{[%clk 0:00:50.7]} 35... hxg4 {[%clk 0:00:06.8]} 36. Rxb5 {[%clk 0:00:49.3]}
36... Ka7 {[%clk 0:00:07.2]} 37. Rxd5 {[%clk 0:00:46.9]} 37... Rc8 {[%clk
0:00:07.1]} 38. Rd7+ {[%clk 0:00:38.8]} 38... Ka6 {[%clk 0:00:08.6]} 39. Qb7+
{[%clk 0:00:40.4]} 39... Kb5 {[%clk 0:00:04.4]} 40. Rd5+ {[%clk 0:00:41.8]} 1-0

[Event "*** Titled Tuesday Blitz"]
[Site "Chess.com"]
[Date "2019.01.01"]
[Round "6"]
[White "x-3738459472"]
[Black "josmito10"]
[Result "1/2-1/2"]
[WhiteElo "2539"]
[BlackElo "2763"]
[TimeControl "180+2"]
[EndTime "14:25:55 PST"]
[Termination "Game drawn - insufficient material"]

1. e4 {[%clk 0:03:01.9]} 1... c5 {[%clk 0:02:58.9]} 2. Nc3 {[%clk 0:03:01.9]}
2... Nc6 {[%clk 0:02:59.2]} 3. Bb5 {[%clk 0:03:02.2]} 3... Nd4 {[%clk
0:02:58.2]} 4. Bc4 {[%clk 0:03:03.6]} 4... e6 {[%clk 0:02:57]} 5. Nf3 {[%clk
0:03:04.2]} 5... Ne7 {[%clk 0:02:57]} 6. O-O {[%clk 0:03:04.2]} 6... Nec6 {[%clk
0:02:54.7]} 7. Nxd4 {[%clk 0:03:04.2]} 7... cxd4 {[%clk 0:02:54.6]} 8. Ne2
{[%clk 0:03:05]} 8... Bc5 {[%clk 0:02:55.9]} 9. c3 {[%clk 0:02:59.9]} 9... O-O
{[%clk 0:02:50.4]} 10. cxd4 {[%clk 0:02:58.9]} 10... Nxd4 {[%clk 0:02:49.1]} 11.
Nxd4 {[%clk 0:02:59.7]} 11... Bxd4 {[%clk 0:02:51]} 12. d3 {[%clk 0:03:01.1]}
12... b6 {[%clk 0:02:30]} 13. Qe2 {[%clk 0:03:00.5]} 13... Bb7 {[%clk
0:02:29.9]} 14. Be3 {[%clk 0:02:56.8]} 14... Bxe3 {[%clk 0:02:21.2]} 15. fxe3
{[%clk 0:02:56.1]} 15... d5 {[%clk 0:02:21.2]} 16. exd5 {[%clk 0:02:55.7]} 16...
Bxd5 {[%clk 0:02:23.1]} 17. Bxd5 {[%clk 0:02:56.1]} 17... Qxd5 {[%clk 0:02:25]}
18. d4 {[%clk 0:02:52.6]} 18... Rac8 {[%clk 0:02:23.6]} 19. b3 {[%clk
0:02:45.5]} 19... Rc3 {[%clk 0:02:21.5]} 20. Rac1 {[%clk 0:02:45.5]} 20... Rfc8
{[%clk 0:02:15.4]} 21. Rxc3 {[%clk 0:02:45.8]} 21... Rxc3 {[%clk 0:02:17.3]} 22.
Qf3 {[%clk 0:02:43.5]} 22... f6 {[%clk 0:01:57.4]} 23. Qxd5 {[%clk 0:02:34.3]}
23... exd5 {[%clk 0:01:58]} 24. Rf5 {[%clk 0:02:35.9]} 24... Rxe3 {[%clk
0:01:48.7]} 25. Rxd5 {[%clk 0:02:36.2]} 25... Kf7 {[%clk 0:01:49.8]} 26. Kf2
{[%clk 0:02:34.6]} 26... Re7 {[%clk 0:01:50]} 27. Rd8 {[%clk 0:02:35.1]} 27...
Ke6 {[%clk 0:01:45.3]} 28. d5+ {[%clk 0:02:35.2]} 28... Ke5 {[%clk 0:01:44.1]}
29. d6 {[%clk 0:02:35.5]} 29... Rf7 {[%clk 0:01:44.5]} 30. Ke3 {[%clk 0:02:31]}
30... g6 {[%clk 0:01:41.1]} 31. Kd3 {[%clk 0:02:31.2]} 31... Kd5 {[%clk
0:01:40.1]} 32. b4 {[%clk 0:02:15.2]} 32... Kc6 {[%clk 0:01:35.6]} 33. Kd4
{[%clk 0:01:48.5]} 33... b5 {[%clk 0:01:21.7]} 34. g4 {[%clk 0:01:36]} 34... f5
{[%clk 0:00:55]} 35. gxf5 {[%clk 0:01:35.8]} 35... Rxf5 {[%clk 0:00:56.1]} 36.
Ke4 {[%clk 0:01:21.3]} 36... Rh5 {[%clk 0:00:54.2]} 37. d7 {[%clk 0:01:20.4]}
37... Rxh2 {[%clk 0:00:42.2]} 38. Ke5 {[%clk 0:01:14.7]} 38... Rxa2 {[%clk
0:00:32.4]} 39. Rh8 {[%clk 0:01:15]} 39... Kxd7 {[%clk 0:00:32.5]} 40. Rxh7+
{[%clk 0:01:15.8]} 40... Kc6 {[%clk 0:00:34.2]} 41. Rg7 {[%clk 0:01:15.2]} 41...
Ra4 {[%clk 0:00:28.1]} 42. Rxg6+ {[%clk 0:01:14.5]} 42... Kd7 {[%clk 0:00:28.6]}
43. Kd5 {[%clk 0:01:13.4]} 43... Rxb4 {[%clk 0:00:27.7]} 44. Rg7+ {[%clk
0:01:13.5]} 44... Kc8 {[%clk 0:00:27.5]} 45. Rxa7 {[%clk 0:01:15.1]} 45... Rb1
{[%clk 0:00:27]} 46. Kc5 {[%clk 0:01:14.9]} 46... b4 {[%clk 0:00:28]} 47. Rh7
{[%clk 0:01:09.2]} 47... b3 {[%clk 0:00:28.7]} 48. Kb4 {[%clk 0:01:07.8]} 48...
b2 {[%clk 0:00:29.3]} 49. Kb3 {[%clk 0:01:09]} 49... Rd1 {[%clk 0:00:29.1]} 50.
Kxb2 {[%clk 0:01:09.7]} 50... Rd7 {[%clk 0:00:30.8]} 51. Rxd7 {[%clk 0:01:08.6]}
51... Kxd7 {[%clk 0:00:32.7]} 1/2-1/2

[Event "*** Titled Tuesday Blitz"]
[Site "Chess.com"]
[Date "2019.01.01"]
[Round "6"]
[White "Nathan_Filgueiras"]
[Black "biostatistician"]
[Result "1-0"]
[WhiteElo "2350"]
[BlackElo "2444"]
[TimeControl "180+2"]
[EndTime "14:26:00 PST"]
[Termination "Nathan_Filgueiras won by resignation"]

1. e4 {[%clk 0:03:01.9]} 1... e6 {[%clk 0:02:59.8]} 2. d4 {[%clk 0:03:01.5]}
2... d5 {[%clk 0:03:01.7]} 3. e5 {[%clk 0:03:00.5]} 3... b6 {[%clk 0:03:02.2]}
4. Nd2 {[%clk 0:02:52.9]} 4... Ba6 {[%clk 0:03:01.3]} 5. Bxa6 {[%clk 0:02:48.8]}
5... Nxa6 {[%clk 0:03:03.2]} 6. c3 {[%clk 0:02:49.9]} 6... Qd7 {[%clk
0:03:00.7]} 7. Ne2 {[%clk 0:02:50.1]} 7... c5 {[%clk 0:02:56.7]} 8. O-O {[%clk
0:02:50.3]} 8... Rc8 {[%clk 0:02:56.5]} 9. f4 {[%clk 0:02:46.3]} 9... Nh6 {[%clk
0:02:57.2]} 10. Nf3 {[%clk 0:02:46.8]} 10... cxd4 {[%clk 0:02:55.1]} 11. cxd4
{[%clk 0:02:39.5]} 11... Nb4 {[%clk 0:02:55.6]} 12. a3 {[%clk 0:02:34.6]} 12...
Nc6 {[%clk 0:02:46]} 13. b4 {[%clk 0:02:35.3]} 13... Be7 {[%clk 0:02:44.8]} 14.
Bd2 {[%clk 0:02:22.1]} 14... O-O {[%clk 0:02:45.2]} 15. h3 {[%clk 0:02:06.8]}
15... f5 {[%clk 0:02:29]} 16. Qb3 {[%clk 0:01:43.6]} 16... Rc7 {[%clk
0:02:23.2]} 17. Rac1 {[%clk 0:01:41.5]} 17... Rfc8 {[%clk 0:02:23.6]} 18. Nc3
{[%clk 0:01:33.8]} 18... a6 {[%clk 0:02:20.7]} 19. Ne2 {[%clk 0:01:30.1]} 19...
Na7 {[%clk 0:02:18.6]} 20. a4 {[%clk 0:01:25.1]} 20... Rc4 {[%clk 0:02:10.8]}
21. Rxc4 {[%clk 0:01:21]} 21... Rxc4 {[%clk 0:02:11.7]} 22. Rc1 {[%clk
0:01:21.3]} 22... b5 {[%clk 0:02:11.8]} 23. a5 {[%clk 0:01:18.5]} 23... Nc6
{[%clk 0:02:10.9]} 24. Rxc4 {[%clk 0:00:24.1]} 24... bxc4 {[%clk 0:02:10.8]} 25.
Qa4 {[%clk 0:00:24.4]} 25... Qb7 {[%clk 0:02:09.4]} 26. b5 {[%clk 0:00:20.4]}
26... Qxb5 {[%clk 0:02:07.3]} 27. Qxb5 {[%clk 0:00:20.4]} 27... axb5 {[%clk
0:02:09.2]} 28. Ng5 {[%clk 0:00:16.2]} 28... Bxg5 {[%clk 0:01:54.6]} 29. fxg5
{[%clk 0:00:17.1]} 29... Nf7 {[%clk 0:01:56.5]} 30. a6 {[%clk 0:00:18.3]} 30...
Nfd8 {[%clk 0:01:52.1]} 31. Ba5 {[%clk 0:00:13.4]} 31... Nf7 {[%clk 0:01:39]}
32. h4 {[%clk 0:00:14.4]} 32... Kf8 {[%clk 0:01:38.3]} 33. Nc3 {[%clk
0:00:10.4]} 33... Nh8 {[%clk 0:01:13.2]} 34. Nxb5 {[%clk 0:00:10.7]} 34... Ng6
{[%clk 0:01:12.6]} 35. g3 {[%clk 0:00:12.1]} 35... h5 {[%clk 0:01:05.7]} 36. a7
{[%clk 0:00:12]} 36... Nxa7 {[%clk 0:01:05.9]} 37. Nxa7 {[%clk 0:00:13.9]} 37...
f4 {[%clk 0:01:06.5]} 38. Kg2 {[%clk 0:00:15.4]} 38... fxg3 {[%clk 0:01:04.9]}
39. Kxg3 {[%clk 0:00:16.6]} 39... Kf7 {[%clk 0:01:05.1]} 40. Bb4 {[%clk
0:00:17.9]} 40... Ne7 {[%clk 0:01:04]} 41. Bxe7 {[%clk 0:00:18.7]} 41... Kxe7
{[%clk 0:01:04.8]} 42. Nb5 {[%clk 0:00:19.8]} 42... Kf7 {[%clk 0:01:04.6]} 43.
Nc3 {[%clk 0:00:20.1]} 43... Kg6 {[%clk 0:01:04.5]} 44. Kf4 {[%clk 0:00:21.7]}
44... Kf7 {[%clk 0:01:05.1]} 45. Ne2 {[%clk 0:00:22.3]} 45... g6 {[%clk
0:00:57.8]} 46. Ke3 {[%clk 0:00:23.1]} 46... Kg7 {[%clk 0:00:59.1]} 47. Kd2
{[%clk 0:00:24.4]} 47... Kf7 {[%clk 0:01:00.3]} 48. Kc3 {[%clk 0:00:26]} 48...
Ke7 {[%clk 0:01:01.9]} 49. Kb4 {[%clk 0:00:27.6]} 49... Kf7 {[%clk 0:01:03.5]}
50. Kc5 {[%clk 0:00:28.1]} 50... Ke7 {[%clk 0:01:05]} 51. Kc6 {[%clk 0:00:29.4]}
1-0

[Event "*** Titled Tuesday Blitz"]
[Site "Chess.com"]
[Date "2019.01.01"]
[Round "6"]
[White "kacprekt"]
[Black "TheBigBoss04"]
[Result "0-1"]
[WhiteElo "2377"]
[BlackElo "2513"]
[TimeControl "180+2"]
[EndTime "14:26:04 PST"]
[Termination "TheBigBoss04 won on time"]

1. d4 {[%clk 0:03:01.9]} 1... b6 {[%clk 0:03:01.9]} 2. c4 {[%clk 0:03:01.3]}
2... Bb7 {[%clk 0:03:03.7]} 3. e4 {[%clk 0:03:01.5]} 3... Nf6 {[%clk 0:03:05.3]}
4. e5 {[%clk 0:02:58.3]} 4... Ng8 {[%clk 0:03:06.2]} 5. f4 {[%clk 0:02:58.8]}
5... d5 {[%clk 0:03:06.3]} 6. cxd5 {[%clk 0:02:57.3]} 6... Bxd5 {[%clk
0:03:03.6]} 7. Nc3 {[%clk 0:02:57.9]} 7... e6 {[%clk 0:03:01.9]} 8. Nf3 {[%clk
0:02:54.9]} 8... Nh6 {[%clk 0:03:00.9]} 9. Bd3 {[%clk 0:02:48.4]} 9... Nf5
{[%clk 0:03:02]} 10. Bxf5 {[%clk 0:02:48.6]} 10... exf5 {[%clk 0:03:00.7]} 11.
O-O {[%clk 0:02:40.4]} 11... c6 {[%clk 0:03:00.7]} 12. Be3 {[%clk 0:02:19.4]}
12... Be7 {[%clk 0:03:01]} 13. Rc1 {[%clk 0:02:16.7]} 13... Be6 {[%clk
0:03:00.3]} 14. Qa4 {[%clk 0:02:04.4]} 14... O-O {[%clk 0:03:00.6]} 15. Rfd1
{[%clk 0:02:02.7]} 15... b5 {[%clk 0:03:00.7]} 16. Qc2 {[%clk 0:02:02.9]} 16...
b4 {[%clk 0:02:58.6]} 17. Na4 {[%clk 0:02:03.3]} 17... Bd5 {[%clk 0:02:58.5]}
18. Ne1 {[%clk 0:01:55.5]} 18... Nd7 {[%clk 0:02:50.5]} 19. b3 {[%clk
0:01:55.7]} 19... Be4 {[%clk 0:02:49.8]} 20. Qe2 {[%clk 0:01:50.1]} 20... Nb6
{[%clk 0:02:51]} 21. Nc5 {[%clk 0:01:42.5]} 21... Bxc5 {[%clk 0:02:49.5]} 22.
dxc5 {[%clk 0:01:37.8]} 22... Nd5 {[%clk 0:02:51]} 23. Qf2 {[%clk 0:00:49]}
23... Qa5 {[%clk 0:02:48.5]} 24. Bd4 {[%clk 0:00:48.7]} 24... Rad8 {[%clk
0:02:47.5]} 25. Ba1 {[%clk 0:00:43.1]} 25... Nc3 {[%clk 0:02:45]} 26. Rxd8
{[%clk 0:00:43.5]} 26... Rxd8 {[%clk 0:02:42.5]} 27. a4 {[%clk 0:00:36.3]} 27...
Rd5 {[%clk 0:02:21.1]} 28. Bxc3 {[%clk 0:00:36.2]} 28... bxc3 {[%clk 0:02:20.8]}
29. Qe3 {[%clk 0:00:36.3]} 29... Qxc5 {[%clk 0:02:19.5]} 30. Rxc3 {[%clk
0:00:37.5]} 30... Qb4 {[%clk 0:02:08.7]} 31. Rxc6 {[%clk 0:00:36.1]} 31... h6
{[%clk 0:02:06.7]} 32. Rc8+ {[%clk 0:00:34.5]} 32... Kh7 {[%clk 0:02:07.2]} 33.
h3 {[%clk 0:00:22.8]} 33... Rd1 {[%clk 0:02:05.4]} 34. Rc1 {[%clk 0:00:23.9]}
34... Rxc1 {[%clk 0:01:57.9]} 35. Qxc1 {[%clk 0:00:25.8]} 35... Qxb3 {[%clk
0:01:59.4]} 36. a5 {[%clk 0:00:22.3]} 36... Qb4 {[%clk 0:02:00.4]} 37. Qa1
{[%clk 0:00:22.4]} 37... Bc6 {[%clk 0:01:52.6]} 38. Qc1 {[%clk 0:00:19.8]} 38...
Be4 {[%clk 0:01:48.9]} 39. Qa1 {[%clk 0:00:19.5]} 39... Bc6 {[%clk 0:01:49]} 40.
Qc1 {[%clk 0:00:20.6]} 40... Qxa5 {[%clk 0:01:50.3]} 41. Kh2 {[%clk 0:00:15.9]}
41... Be4 {[%clk 0:01:48.5]} 42. Qe3 {[%clk 0:00:15.5]} 42... Qd5 {[%clk
0:01:45.4]} 43. g4 {[%clk 0:00:14.4]} 43... Qa2+ {[%clk 0:01:45.8]} 44. Kg3
{[%clk 0:00:15.1]} 44... a5 {[%clk 0:01:45.8]} 45. g5 {[%clk 0:00:14.7]} 45...
h5 {[%clk 0:01:41.1]} 46. Nf3 {[%clk 0:00:12.4]} 46... a4 {[%clk 0:01:38.9]} 47.
g6+ {[%clk 0:00:07.8]} 47... Kxg6 {[%clk 0:01:18.4]} 48. Qb6+ {[%clk 0:00:08.1]}
48... Qe6 {[%clk 0:01:17.9]} 49. Nh4+ {[%clk 0:00:07.6]} 49... Kh7 {[%clk
0:01:18.1]} 0-1

[Event "*** Titled Tuesday Blitz"]
[Site "Chess.com"]
[Date "2019.01.01"]
[Round "6"]
[White "DryCounty"]
[Black "Msb2"]
[Result "1-0"]
[WhiteElo "2744"]
[BlackElo "2796"]
[TimeControl "180+2"]
[EndTime "14:26:10 PST"]
[Termination "DryCounty won by resignation"]

1. Nf3 {[%clk 0:03:01.9]} 1... d5 {[%clk 0:02:59.8]} 2. c4 {[%clk 0:03:02.3]}
2... e6 {[%clk 0:03:00.7]} 3. b3 {[%clk 0:03:02.7]} 3... d4 {[%clk 0:02:59.8]}
4. g3 {[%clk 0:03:01.7]} 4... c5 {[%clk 0:03:00.7]} 5. Bg2 {[%clk 0:03:02.9]}
5... Nc6 {[%clk 0:03:02.2]} 6. O-O {[%clk 0:03:04.3]} 6... e5 {[%clk 0:03:03.2]}
7. e3 {[%clk 0:03:02.8]} 7... e4 {[%clk 0:02:27.9]} 8. Ne1 {[%clk 0:02:55.9]}
8... Bf5 {[%clk 0:02:04.1]} 9. d3 {[%clk 0:02:37.3]} 9... dxe3 {[%clk
0:01:40.5]} 10. Bxe3 {[%clk 0:02:35.7]} 10... exd3 {[%clk 0:01:33.3]} 11. Nc3
{[%clk 0:02:34.9]} 11... Nf6 {[%clk 0:01:34.1]} 12. Nd5 {[%clk 0:02:29.8]} 12...
Nxd5 {[%clk 0:01:00.2]} 13. Bxd5 {[%clk 0:02:26.9]} 13... Nb4 {[%clk 0:00:51.4]}
14. Bxb7 {[%clk 0:02:21.4]} 14... Rb8 {[%clk 0:00:53]} 15. Bg2 {[%clk 0:02:17]}
15... Qd7 {[%clk 0:00:54.4]} 16. Nf3 {[%clk 0:01:52.2]} 16... Be7 {[%clk
0:00:48.8]} 17. Ne5 {[%clk 0:01:48.7]} 17... Qe6 {[%clk 0:00:50.1]} 18. Bf4
{[%clk 0:01:44.1]} 18... O-O {[%clk 0:00:43.9]} 19. a3 {[%clk 0:01:39.8]} 19...
Nc2 {[%clk 0:00:45]} 20. Nxd3 {[%clk 0:01:34.8]} 20... Rbd8 {[%clk 0:00:45.9]}
21. Bd5 {[%clk 0:01:27.6]} 21... Qg6 {[%clk 0:00:35.9]} 22. Ne5 {[%clk
0:01:24.7]} 22... Qa6 {[%clk 0:00:33.6]} 23. Nc6 {[%clk 0:01:16.5]} 23... Bf6
{[%clk 0:00:16.8]} 24. Nxd8 {[%clk 0:01:16]} 24... Rxd8 {[%clk 0:00:18.7]} 25.
Rc1 {[%clk 0:01:14.6]} 25... Nd4 {[%clk 0:00:19.3]} 26. b4 {[%clk 0:01:09.8]}
26... g5 {[%clk 0:00:18.7]} 27. Be3 {[%clk 0:01:07.9]} 27... g4 {[%clk
0:00:19.2]} 28. bxc5 {[%clk 0:01:07]} 28... Rxd5 {[%clk 0:00:17.8]} 29. cxd5
{[%clk 0:01:03.9]} 29... Ne2+ {[%clk 0:00:19.3]} 30. Kg2 {[%clk 0:01:00.1]}
30... Be4+ {[%clk 0:00:15.8]} 31. f3 {[%clk 0:01:01.1]} 31... gxf3+ {[%clk
0:00:17.7]} 32. Rxf3 {[%clk 0:01:01.5]} 32... Nxc1 {[%clk 0:00:18.4]} 33. Bxc1
{[%clk 0:00:53.7]} 33... Qc4 {[%clk 0:00:18.3]} 34. Be3 {[%clk 0:00:46.5]} 34...
Bxd5 {[%clk 0:00:17.5]} 35. Kf2 {[%clk 0:00:45]} 35... Bxf3 {[%clk 0:00:12]} 36.
Qxf3 {[%clk 0:00:46.1]} 36... Be5 {[%clk 0:00:09.6]} 37. c6 {[%clk 0:00:42.3]}
37... Qc2+ {[%clk 0:00:10.3]} 38. Kg1 {[%clk 0:00:41.9]} 38... a5 {[%clk
0:00:10.2]} 39. Bf2 {[%clk 0:00:32.9]} 39... a4 {[%clk 0:00:09.4]} 40. Kg2
{[%clk 0:00:33.7]} 40... Kg7 {[%clk 0:00:09.1]} 41. Qg4+ {[%clk 0:00:33.1]}
41... Qg6 {[%clk 0:00:10.1]} 42. Qxg6+ {[%clk 0:00:33.6]} 42... Kxg6 {[%clk
0:00:08.2]} 43. Bb6 {[%clk 0:00:35.1]} 1-0

[Event "*** Titled Tuesday Blitz"]
[Site "Chess.com"]
[Date "2019.01.01"]
[Round "6"]
[White "tteshan"]
[Black "tomozupan"]
[Result "1-0"]
[WhiteElo "2140"]
[BlackElo "2191"]
[TimeControl "180+2"]
[EndTime "14:26:10 PST"]
[Termination "tteshan won by checkmate"]

1. d4 {[%clk 0:03:01.9]} 1... Nf6 {[%clk 0:03:00.4]} 2. c4 {[%clk 0:03:03.3]}
2... g6 {[%clk 0:03:01.5]} 3. Nc3 {[%clk 0:03:04.5]} 3... d5 {[%clk 0:03:02.8]}
4. Qb3 {[%clk 0:03:02.7]} 4... dxc4 {[%clk 0:03:02.4]} 5. Qxc4 {[%clk
0:03:04.6]} 5... Bg7 {[%clk 0:03:03.1]} 6. e4 {[%clk 0:03:05.5]} 6... a6 {[%clk
0:03:02.4]} 7. Nf3 {[%clk 0:03:04.5]} 7... b5 {[%clk 0:03:02.5]} 8. Qb3 {[%clk
0:02:56.5]} 8... O-O {[%clk 0:02:58.1]} 9. Bf4 {[%clk 0:02:52.5]} 9... Nc6
{[%clk 0:02:53.9]} 10. d5 {[%clk 0:02:40.4]} 10... Na5 {[%clk 0:02:52.9]} 11.
Qc2 {[%clk 0:02:38.2]} 11... c6 {[%clk 0:02:53.4]} 12. b4 {[%clk 0:02:29.4]}
12... Nc4 {[%clk 0:02:46.3]} 13. Bxc4 {[%clk 0:02:27.7]} 13... bxc4 {[%clk
0:02:46.8]} 14. Rd1 {[%clk 0:02:27]} 14... cxd5 {[%clk 0:02:45.8]} 15. Nxd5
{[%clk 0:02:26.7]} 15... Nxd5 {[%clk 0:02:39.9]} 16. Rxd5 {[%clk 0:02:27.7]}
16... Qb6 {[%clk 0:02:40]} 17. Qxc4 {[%clk 0:02:24]} 17... Be6 {[%clk 0:02:40]}
18. Qc5 {[%clk 0:02:25.4]} 18... Qb7 {[%clk 0:02:10.3]} 19. Rd1 {[%clk
0:01:57.5]} 19... Qxe4+ {[%clk 0:02:05.5]} 20. Be3 {[%clk 0:01:53.9]} 20... Rac8
{[%clk 0:02:03.1]} 21. Qg5 {[%clk 0:01:22.3]} 21... Bxa2 {[%clk 0:01:14.4]} 22.
O-O {[%clk 0:01:19.7]} 22... Qxb4 {[%clk 0:01:14]} 23. Rd2 {[%clk 0:01:16.2]}
23... Bc4 {[%clk 0:01:04.1]} 24. Rfd1 {[%clk 0:01:13.5]} 24... a5 {[%clk
0:01:04.4]} 25. Rd7 {[%clk 0:01:09.8]} 25... a4 {[%clk 0:00:58.6]} 26. h4 {[%clk
0:01:05]} 26... a3 {[%clk 0:00:58.2]} 27. Bd4 {[%clk 0:00:55.3]} 27... Bxd4
{[%clk 0:00:39.4]} 28. Nxd4 {[%clk 0:00:54.7]} 28... Qa4 {[%clk 0:00:36.3]} 29.
Nf5 {[%clk 0:00:51.6]} 29... Be6 {[%clk 0:00:32.7]} 30. Nxe7+ {[%clk 0:00:51.2]}
30... Kg7 {[%clk 0:00:30.7]} 31. Qe5+ {[%clk 0:00:52]} 31... Kh6 {[%clk
0:00:26.5]} 32. R7d4 {[%clk 0:00:40.5]} 32... Rc4 {[%clk 0:00:21.5]} 33. g4
{[%clk 0:00:14.8]} 33... Rxd4 {[%clk 0:00:13.2]} 34. Rxd4 {[%clk 0:00:16.1]}
34... Qb3 {[%clk 0:00:06.6]} 35. g5+ {[%clk 0:00:17.1]} 35... Kh5 {[%clk
0:00:07.2]} 36. Qe2+ {[%clk 0:00:18.5]} 36... Bg4 {[%clk 0:00:03.2]} 37. Qxg4#
{[%clk 0:00:19.5]} 1-0